bitfinex-derivatives/quotes_ETHF0:USTF0_20250507
["timestamp","ask_amount","ask_price","bid_price","bid_amount"]
[1746576566361,1.10115,1816.4,1816.3,0.8081]
[1746576567164,1.10115,1816.4,1816.3,4.4081]
[1746576568971,1.10109,1816.5,1816.3,5.50926]
[1746576569270,7.8728,1816.6,1816.3,8.4671]
[1746576569470,1.10113,1816.4,1816.3,8.4671]
[1746576569672,1.10111,1816.5,1816.3,50.36829]
[1746576569966,1.10107,1816.5,1816.4,1.10111]
[1746576570173,5.76604,1816.6,1816.3,49.2671]
[1746576570372,5.76604,1816.6,1816.4,4.663]
[1746576570373,1.10107,1816.5,1816.4,4.663]
[1746576570573,1.10107,1816.5,1816.4,5.76413]
[1746576571069,1.10107,1816.5,1816.4,8.263]
[1746576571774,3.2078,1816.8,1816.4,16.4708]
[1746576572073,3.2078,1816.8,1816.5,1.10104]
[1746576572270,1.10096,1816.7,1816.6,1.10099]
[1746576572468,1.10101,1816.6,1816.5,5.16002]
[1746576572672,1.10099,1816.7,1816.6,1.10101]
[1746576573172,1.10099,1816.7,1816.5,8.76002]
[1746576573372,1.10101,1816.6,1816.5,8.76002]
[1746576573875,1.101,1816.7,1816.6,1.10101]
[1746576574068,1.1008,1817.0,1816.9,1.10081]
[1746576574275,1.10085,1816.9,1816.8,1.10086]
[1746576574483,1.10085,1816.9,1816.8,1.90876]
[1746576574683,1.10085,1816.9,1816.8,0.8079]
[1746576576074,4.70085,1816.9,1816.8,0.8079]
[1746576576778,5.94392319,1817.4,1816.8,0.8079]
[1746576576779,2.75118,1817.5,1816.9,2.75207]
[1746576576984,9.5024,1817.6,1817.3,1.10054]
[1746576576985,3.2078,1817.6,1817.3,1.10054]
[1746576577183,1.10058,1817.3,1817.2,4.059]
[1746576577382,3.2078,1817.6,1817.2,50.81841]
[1746576577681,3.2078,1817.6,1817.5,1.10046]
[1746576577682,4.30824,1817.6,1817.5,1.10046]
[1746576578186,1.10052,1817.4,1817.3,5.76255]
[1746576578377,1.10052,1817.4,1817.3,4.662]
[1746576578678,1.10052,1817.4,1817.3,5.76258]
[1746576578878,1.10051,1817.5,1817.4,1.10052]
[1746576579078,4.70051,1817.5,1817.4,1.10052]
[1746576579279,1.10052,1817.4,1817.3,4.662]
[1746576580385,7.72142,1817.6,1817.2,53.82839]
[1746576580787,7.72142,1817.6,1817.4,1.10048]
[1746576580788,1.10049,1817.5,1817.4,1.10048]
[1746576580980,6.8078,1817.8,1817.4,5.95911]
[1746576581175,4.30812,1817.8,1817.7,1.10034]
[1746576581381,3.2078,1817.8,1817.7,1.10034]
[1746576582781,4.30785,1818.2,1817.8,2.75065]
[1746576582982,4.30785,1818.2,1818.1,1.1001]
[1746576583187,1.10011,1818.1,1818.0,1.10012]
[1746576583382,4.3079,1818.2,1817.9,8.72]
[1746576583582,4.3079,1818.2,1818.1,1.1001]
[1746576584088,3.2078,1818.2,1817.9,8.72]
[1746576584291,1.10016,1818.0,1817.9,8.72]
[1746576584481,1.10016,1818.0,1817.9,4.059]
[1746576584681,1.10016,1818.0,1817.9,5.7148]
[1746576585090,1.10016,1818.0,1817.9,4.059]
[1746576585284,1.10022,1817.9,1817.8,1.6558]
[1746576585487,1.10058,1817.3,1817.2,45.95962]
[1746576585687,1.10058,1817.3,1817.2,44.859]
[1746576586186,4.70058,1817.3,1817.2,40.8]
[1746576586490,4.70058,1817.3,1817.2,41.90064]
[1746576586491,3.6,1817.3,1817.2,41.90064]
[1746576586791,3.6,1817.3,1817.2,43.52854]
[1746576587092,4.70058,1817.3,1817.2,43.52854]
[1746576587293,4.70058,1817.3,1817.2,42.4279]
[1746576587490,4.70058,1817.3,1817.2,43.52854]
[1746576588290,1.10058,1817.3,1817.2,43.52854]
[1746576589890,1.6042,1817.5,1817.2,42.4279]
[1746576590089,1.10057,1817.4,1817.3,2.86498]
[1746576590296,1.10057,1817.4,1817.3,1.7644]
[1746576591091,4.70057,1817.4,1817.3,1.7644]
[1746576591891,3.6,1817.4,1817.3,2.86498]
[1746576592596,3.6,1817.4,1817.3,6.92398]
[1746576592797,3.6,1817.4,1817.3,15.13178]
[1746576593096,1.10039,1817.7,1817.6,1.1004]
[1746576593300,1.10032,1817.8,1817.7,1.10032]
[1746576593498,5.95851,1817.8,1817.5,1.10046]
[1746576593792,1.1004,1817.6,1817.5,2.74566]
[1746576596594,1.10039,1817.7,1817.6,1.1004]
[1746576596790,2.81567,1817.9,1817.8,1.10028]
[1746576596991,1.10027,1817.9,1817.8,1.10028]
[1746576597398,1.10027,1817.9,1817.8,2.72028]
[1746576597699,2.81561,1818.0,1817.9,1.10022]
[1746576597992,1.1,1818.3,1818.2,1.10001]
[1746576598186,1.10004,1818.2,1818.1,1.10005]
[1746576598391,1.10004,1818.2,1818.1,1.97795]
[1746576598695,1.10003,1818.3,1818.1,3.65545]
[1746576598897,1.10003,1818.3,1818.2,1.6775]
[1746576599201,5.99526,1818.4,1818.3,1.09998]
[1746576599894,1.1001,1818.1,1818.0,9.82214]
[1746576600100,1.1001,1818.1,1818.0,10.3995]
[1746576600296,1.1001,1818.1,1818.0,5.7365]
[1746576600497,1.1001,1818.1,1818.0,4.059]
[1746576600697,5.7361,1818.1,1818.0,4.059]
[1746576600998,7.3504,1818.1,1818.0,4.059]
[1746576601298,10.9504,1818.1,1818.0,4.059]
[1746576602702,9.8503,1818.1,1817.9,7.49931]
[1746576602895,10.95042,1818.1,1818.0,1.7371]
[1746576603403,4.70012,1818.1,1818.0,2.83726]
[1746576603904,3.6,1818.1,1818.0,2.83726]
[1746576604099,4.30789,1818.2,1818.1,1.1001]
[1746576604400,4.30789,1818.2,1818.1,2.8679]
[1746576604799,1.10009,1818.2,1818.1,1.7678]
[1746576605000,1.10009,1818.2,1818.1,2.8679]
[1746576605201,1.10009,1818.2,1818.1,1.7678]
[1746576606596,1.10002,1818.3,1818.1,2.8679]
[1746576606797,1.10002,1818.3,1818.2,0.8538]
[1746576607105,3.2078,1818.4,1818.3,1.09998]
[1746576607306,3.2078,1818.4,1818.3,41.89998]
[1746576607506,3.2078,1818.4,1818.3,43.65598]
[1746576607703,7.8268,1818.7,1818.4,1.09988]
[1746576608008,2.7989,1818.8,1818.6,1.09977]
[1746576608209,1.0997,1818.8,1818.7,1.756]
[1746576608399,1.09968,1818.8,1818.7,1.756]
[1746576608601,1.09966,1818.9,1818.7,2.85572]
[1746576609002,1.09966,1818.9,1818.8,1.756]
[1746576610412,4.71107683,1819.1,1818.8,1.756]
[1746576611409,8.00328,1818.8,1818.7,4.059]
[1746576612401,4.69968,1818.8,1818.7,4.059]
[1746576612605,4.69968,1818.8,1818.7,5.7324]
[1746576612903,3.6,1818.8,1818.7,6.83214]
[1746576613111,1.09968,1818.8,1818.7,6.83214]
[1746576613408,1.09959,1819.0,1818.8,1.09968]
[1746576613608,1.09959,1819.0,1818.9,2.4967]
[1746576613807,0.10107683,1819.1,1818.9,6.5557]
[1746576614007,1.20061683,1819.1,1819.0,1.6903]
[1746576615003,1.20061683,1819.1,1819.0,2.78986]
[1746576615212,0.10107683,1819.1,1819.0,2.78986]
[1746576615711,7.4521,1819.5,1819.2,1.09939]
[1746576615914,6.3528,1819.5,1819.2,1.09939]
[1746576616105,7.45211,1819.5,1819.3,2.4771]
[1746576616306,1.09931,1819.5,1819.4,1.6285]
[1746576616610,1.09925,1819.5,1819.4,1.6285]
[1746576617210,12.46417847,1819.5,1818.2,3.2078]
[1746576617400,3.2078,1818.6,1818.2,1.6285]
[1746576617606,4.722,1818.7,1818.2,4.8363]
[1746576617904,1.09971,1818.8,1818.6,1.09977]
[1746576618103,1.09971,1818.8,1818.7,1.6285]
[1746576618613,2.73201,1818.8,1818.7,1.6285]
[1746576618811,2.73202,1818.8,1818.6,1.0998]
[1746576619105,1.09974,1818.7,1818.6,1.7395]
[1746576619509,1.09974,1818.7,1818.5,5.4636]
[1746576619510,1.0998,1818.6,1818.5,5.4636]
[1746576619714,2.8632,1818.6,1818.5,2.5881]
[1746576620211,2.8632,1818.6,1818.5,1.7395]
[1746576620810,1.09992,1818.4,1818.3,41.6322]
[1746576621006,1.0999,1818.5,1818.3,44.47168]
[1746576621312,1.0999,1818.5,1818.4,1.7395]
[1746576621500,2.86323,1818.6,1818.4,2.83942]
[1746576621704,1.09986,1818.5,1818.4,1.7395]
[1746576621907,2.86324,1818.6,1818.4,2.8394]
[1746576622409,1.7634,1818.6,1818.5,1.09986]
[1746576622606,9.01052,1818.8,1818.5,1.6388]
[1746576622806,1.0998,1818.6,1818.5,2.73862]
[1746576623313,2.77648,1818.7,1818.5,2.73862]
[1746576623610,1.0998,1818.6,1818.5,2.73862]
[1746576624011,2.77648,1818.7,1818.6,1.0998]
[1746576624201,1.6767,1818.7,1818.6,1.0998]
[1746576624405,1.09978,1818.7,1818.5,1.6388]
[1746576624610,3.3267,1818.9,1818.5,1.6388]
[1746576624909,3.3267,1818.9,1818.6,5.71474]
[1746576624910,1.0997,1818.8,1818.6,5.71474]
[1746576625101,2.7695,1818.8,1818.6,5.71474]
[1746576625500,1.6698,1818.8,1818.7,1.09974]
[1746576626109,1.09954,1819.1,1818.9,1.0996]
[1746576626316,2.76934,1819.1,1818.9,5.71456]
[1746576626612,1.6698,1819.1,1819.0,2.75096]
[1746576626814,2.76929,1819.1,1819.0,1.6514]
[1746576627113,0.8707,1819.4,1819.0,1.6514]
[1746576627413,3.63983,1819.4,1819.2,1.09938]
[1746576627614,1.09937,1819.3,1819.1,1.09945]
[1746576627801,2.76917,1819.3,1819.2,1.09943]
[1746576628005,1.6698,1819.3,1819.2,1.09943]
[1746576629216,1.6698,1819.3,1819.2,6.34353]
[1746576629513,7.9208,1819.5,1819.2,5.2441]
[1746576629717,1.09931,1819.4,1819.3,1.6441]
[1746576630013,2.87561,1819.4,1819.3,1.6441]
[1746576630314,1.09937,1819.3,1819.1,1.09946]
[1746576630614,2.87567,1819.3,1819.2,1.09943]
[1746576630914,2.87567,1819.3,1819.1,1.09946]
[1746576631102,1.6558,1819.2,1819.1,1.09946]
[1746576632006,1.6558,1819.2,1819.1,2.79886]
[1746576635310,3.2078,1819.5,1819.1,4.44814]
[1746576635516,4.30706,1819.5,1819.3,1.09934]
[1746576635811,5.99625,1819.5,1819.4,2.85291]
[1746576636115,5.99625,1819.5,1819.4,5.3536]
[1746576636816,5.99625,1819.5,1819.4,6.45291]
[1746576637014,5.99625,1819.5,1819.4,5.3536]
[1746576638706,4.30705,1819.5,1819.4,5.3536]
[1746576639112,1.09925,1819.5,1819.4,5.3536]
[1746576639719,1.09925,1819.5,1819.4,3.6]
[1746576640506,1.94355,1819.5,1819.4,3.6]
[1746576641321,1.94355,1819.5,1819.4,5.249]
[1746576641818,1.94355,1819.5,1819.4,6.34831]
[1746576642010,1.94355,1819.5,1819.4,5.249]
[1746576642211,1.94355,1819.5,1819.4,6.34831]
[1746576642508,1.09925,1819.5,1819.4,6.34831]
[1746576642713,3.2078,1819.7,1819.4,5.249]
[1746576643009,4.30696,1819.7,1819.6,1.09919]
[1746576643212,4.30696,1819.7,1819.5,6.34821]
[1746576643412,4.30696,1819.7,1819.6,40.8]
[1746576643608,4.30696,1819.7,1819.6,42.4707]
[1746576645425,5.94756,1819.7,1819.6,42.4707]
[1746576646026,5.94756,1819.7,1819.6,1.6707]
[1746576646723,4.30696,1819.7,1819.6,1.6707]
[1746576646922,4.30696,1819.7,1819.6,2.5227]
[1746576648418,1.09916,1819.7,1819.6,2.5227]
[1746576651419,1.09912,1819.8,1819.7,1.09913]
[1746576651624,1.09912,1819.8,1819.7,1.6469]
[1746576652221,1.09912,1819.8,1819.7,5.2469]
[1746576652825,1.09912,1819.8,1819.7,3.6]
[1746576653219,1.09912,1819.8,1819.7,6.0921]
[1746576653626,1.09912,1819.8,1819.7,7.19123]
[1746576654827,1.09912,1819.8,1819.7,6.0921]
[1746576655428,1.09912,1819.8,1819.7,3.6]
[1746576655627,2.71332,1819.8,1819.7,3.6]
[1746576656020,2.71332,1819.8,1819.7,5.2549]
[1746576660227,1.09912,1819.8,1819.7,5.2549]
[1746576664841,1.09912,1819.8,1819.7,3.6]
[1746576665031,2.71072,1819.8,1819.7,3.6]
[1746576665435,1.09925,1819.5,1819.4,4.059]
[1746576666035,2.71085,1819.5,1819.4,4.059]
[1746576666230,2.71085,1819.5,1819.4,7.659]
[1746576666432,2.71085,1819.5,1819.4,9.3237]
[1746576668737,2.71085,1819.5,1819.4,5.2647]
[1746576669729,2.71085,1819.5,1819.4,3.6]
[1746576671738,2.71085,1819.5,1819.4,2.33687]
[1746576671938,7.71085,1819.5,1819.4,0.70190317]
[1746576672139,1.09968,1818.8,1818.6,11.72837626]
[1746576672342,4.30748,1818.8,1818.6,12.51707626]
[1746576672934,4.30748,1818.8,1818.6,10.87057626]
[1746576673136,15.60258,1818.8,1818.7,10.83429846]
[1746576673536,15.60258,1818.8,1818.7,14.47057626]
[1746576674035,10.60258,1818.8,1818.7,14.47057626]
[1746576675341,10.60258,1818.8,1818.7,16.22117626]
[1746576676536,8.94348,1818.8,1818.7,16.22117626]
[1746576676741,4.30748,1818.8,1818.7,5.3506]
[1746576677144,4.30748,1818.8,1818.7,3.6]
[1746576677337,6.90958,1818.8,1818.7,3.6]
[1746576680538,11.47158,1818.8,1818.7,3.6]
[1746576684048,16.03558,1818.8,1818.7,2.44222]
[1746576684242,1.09998,1818.3,1818.2,4.059]
[1746576684545,4.30778,1818.3,1818.2,2.6114]
[1746576685238,4.30778,1818.3,1818.2,6.2114]
[1746576685945,4.30778,1818.3,1818.2,11.2114]
[1746576686346,4.554,1818.4,1818.2,12.31144]
[1746576686347,5.65396,1818.4,1818.2,12.31144]
[1746576686548,1.09998,1818.3,1818.2,4.4672]
[1746576686949,1.09998,1818.3,1818.2,9.4672]
[1746576688148,4.30778,1818.3,1818.2,4.4672]
[1746576690242,4.30778,1818.3,1818.2,3.6]
[1746576690454,10.91878,1818.3,1818.2,2.13387]
[1746576690745,1.10028,1817.8,1817.7,0.8422]
[1746576690944,5.66628,1817.8,1817.7,0.8422]
[1746576691143,5.66548,1817.8,1817.7,4.4422]
[1746576692550,10.23048,1817.8,1817.7,3.6]
[1746576692851,11.87798,1817.8,1817.7,3.6]
[1746576693752,16.87798,1817.8,1817.7,3.6]
[1746576693953,16.97912212,1817.8,1817.7,3.6]
[1746576694149,1.10052,1817.4,1817.3,0.8721]
[1746576694452,5.66652,1817.4,1817.3,0.8721]
[1746576695345,5.66652,1817.4,1817.3,4.4721]
[1746576696049,4.566,1817.4,1817.3,4.4721]
[1746576696255,5.66652,1817.4,1817.3,4.4721]
[1746576699045,1.10047,1817.5,1817.4,1.10052]
[1746576699251,1.10047,1817.5,1817.3,5.57266]
[1746576699553,1.10045,1817.6,1817.3,5.57266]
[1746576699953,8.86519,1817.7,1817.5,1.10045]
[1746576700143,3.2078,1817.7,1817.6,0.8502]
[1746576700348,3.2078,1817.7,1817.6,42.7506]
[1746576700549,3.2078,1817.7,1817.6,47.7506]
[1746576702055,3.2078,1817.7,1817.6,42.7506]
[1746576702455,3.2078,1817.7,1817.6,51.8096]
[1746576702656,3.2078,1817.7,1817.6,46.8096]
[1746576702849,4.30814,1817.7,1817.6,46.8096]
[1746576703050,3.2078,1817.7,1817.6,46.8096]
[1746576703951,1.1002,1818.0,1817.9,1.1002]
[1746576704144,1.10026,1817.9,1817.8,1.10026]
[1746576704549,1.10021,1818.0,1817.9,1.10021]
[1746576705156,1.10021,1818.0,1817.9,4.70021]
[1746576705353,4.30789,1818.2,1818.1,1.1001]
[1746576705559,3.2078,1818.2,1818.1,1.1001]
[1746576705753,4.30785,1818.2,1818.0,3.56192]
[1746576705951,1.1001,1818.1,1818.0,0.8153]
[1746576706255,1.1001,1818.1,1818.0,4.4153]
[1746576707157,1.1001,1818.1,1818.0,3.6]
[1746576707363,2.7173,1818.1,1818.0,3.6]
[1746576707555,7.7173,1818.1,1818.0,3.6]
[1746576708658,2.7173,1818.1,1818.0,3.6]
[1746576709663,7.2743,1818.1,1818.0,3.6]
[1746576712261,4.557,1818.1,1818.0,3.6]
[1746576712563,5.6571,1818.1,1818.0,3.6]
[1746576714463,7.3425,1818.1,1818.0,3.6]
[1746576715056,5.6571,1818.1,1818.0,3.6]
[1746576716973,7.2915,1818.1,1818.0,3.6]
[1746576718771,8.8649,1818.1,1818.0,3.6]
[1746576719268,3.2078,1818.1,1818.0,4.70016]
[1746576719470,4.3079,1818.1,1818.0,3.6]
[1746576719668,3.2078,1818.1,1818.0,3.6]
[1746576719862,4.3079,1818.1,1818.0,4.70016]
[1746576720262,3.2078,1818.1,1818.0,4.70016]
[1746576720481,3.2078,1818.1,1818.0,13.75916]
[1746576720676,1.10005,1818.2,1818.0,12.659]
[1746576720872,1.10005,1818.2,1818.1,0.8638]
[1746576722267,1.1001,1818.1,1818.0,7.659]
[1746576723374,1.1001,1818.1,1818.0,8.75916]
[1746576723574,1.1001,1818.1,1818.0,7.659]
[1746576725076,1.1001,1818.1,1818.0,9.2821]
[1746576725276,4.3079,1818.1,1818.0,3.6]
[1746576725774,11.11252727,1818.1,1818.0,3.6]
[1746576725974,11.11252727,1818.1,1818.0,0.10826]
[1746576726276,1.10046,1817.5,1817.4,9.85360752]
[1746576726477,8.86426,1817.5,1817.4,9.85360752]
[1746576726678,8.86426,1817.5,1817.4,9.03970752]
[1746576726974,8.86426,1817.5,1817.4,49.83970752]
[1746576727175,10.56776,1817.5,1817.4,12.63970752]
[1746576729574,7.35996,1817.5,1817.4,12.63970752]
[1746576729877,5.65643,1817.6,1817.4,12.63970752]
[1746576730076,1.10046,1817.5,1817.4,3.6]
[1746576730278,4.30826,1817.5,1817.4,3.6]
[1746576730679,6.05126,1817.5,1817.4,3.6]
[1746576730874,2.84346,1817.5,1817.4,3.6]
[1746576731179,6.05126,1817.5,1817.4,3.6]
[1746576732878,7.75916,1817.5,1817.4,3.6]
[1746576735069,12.31616,1817.5,1817.4,3.6]
[1746576735270,12.31616,1817.5,1817.4,2.47692]
[1746576736081,17.31616,1817.5,1817.4,2.47692]
[1746576737081,17.41732193,1817.5,1817.4,1e-05]
[1746576738175,1.10089,1816.8,1816.7,40.8]
[1746576738384,4.30869,1816.8,1816.7,40.8]
[1746576739077,4.30869,1816.8,1816.7,44.4]
[1746576739484,1.10089,1816.8,1816.7,44.4]
[1746576739685,4.557,1816.9,1816.7,50.50092]
[1746576739984,4.30862,1817.0,1816.8,1.10088]
[1746576740177,4.30862,1817.0,1816.7,45.5009]
[1746576740372,3.2078,1817.0,1816.7,44.4]
[1746576740576,3.2078,1817.0,1816.7,49.4]
[1746576740777,3.2078,1817.0,1816.9,1.10083]
[1746576741178,3.2078,1817.0,1816.9,9.70083]
[1746576741583,3.2078,1817.0,1816.9,4.70083]
[1746576742383,4.74971815,1817.3,1817.2,1.10064]
[1746576742879,4.74971815,1817.3,1817.1,1.10066]
[1746576743386,4.74971815,1817.3,1817.2,1.92674]
[1746576743683,4.74971815,1817.3,1817.2,0.8261]
[1746576744183,4.74971815,1817.3,1817.2,5.52674]
[1746576744583,1.10062,1817.3,1817.2,5.52674]
[1746576744778,1.10057,1817.4,1817.2,5.52674]
[1746576744979,1.10057,1817.4,1817.3,2.82228]
[1746576745183,3.2078,1817.5,1817.4,1.10052]
[1746576745385,3.2078,1817.5,1817.4,3.64712]
[1746576746079,3.2078,1817.5,1817.4,7.24712]
[1746576746585,1.10036,1817.7,1817.4,7.24712]
[1746576746785,1.1004,1817.6,1817.5,5.6731]
[1746576747188,1.1004,1817.6,1817.5,10.37356]
[1746576747787,1.10039,1817.7,1817.6,1.10039]
[1746576747983,1.10039,1817.7,1817.6,1.93589]
[1746576751392,6.02183,1817.8,1817.7,1.10034]
[1746576751592,1.10034,1817.7,1817.6,1.93587]
[1746576751893,4.30809,1817.8,1817.7,1.10034]
[1746576752389,1.10034,1817.7,1817.6,1.93585]
[1746576752793,1.10034,1817.7,1817.6,0.8355]
[1746576754095,3.2078,1817.8,1817.6,0.8355]
[1746576754293,3.2078,1817.8,1817.7,1.10034]
[1746576754493,4.30811,1817.8,1817.6,1.93585]
[1746576754695,1.10034,1817.7,1817.6,1.93585]
[1746576754889,3.2078,1817.8,1817.7,1.10034]
[1746576755088,3.2078,1817.8,1817.7,4.70034]
[1746576755600,4.30813,1817.8,1817.7,3.6]
[1746576764700,4.30813,1817.8,1817.7,6.31474]
[1746576764902,4.30813,1817.8,1817.7,5.2144]
[1746576767002,1.10033,1817.8,1817.7,5.2144]
[1746576768294,4.30813,1817.8,1817.7,5.2144]
[1746576768695,5.14893,1817.8,1817.7,5.2144]
[1746576770301,6.00153,1817.8,1817.7,5.2144]
[1746576771203,6.00153,1817.8,1817.7,3.6]
[1746576771399,11.00153,1817.8,1817.7,2.48346]
[1746576772092,6.00153,1817.8,1817.7,2.48346]
[1746576772298,1.10034,1817.7,1817.6,4.059]
[1746576772497,7.43084,1817.7,1817.6,4.059]
[1746576773605,1.1004,1817.6,1817.5,3.6]
[1746576773903,4.3082,1817.6,1817.5,3.6]
[1746576775397,6.0776,1817.6,1817.5,3.6]
[1746576778501,4.3082,1817.6,1817.5,3.6]
[1746576779701,9.3082,1817.6,1817.5,3.6]
[1746576780199,5.9133,1817.6,1817.5,3.6]
[1746576783616,8.8612,1817.6,1817.5,3.6]
[1746576784604,4.3082,1817.6,1817.5,3.6]
[1746576784806,7.95718815,1817.8,1817.5,14.3789]
[1746576785005,7.95718815,1817.8,1817.6,6.87928]
[1746576785211,6.85689815,1817.8,1817.7,1.7199]
[1746576785412,6.85689815,1817.8,1817.7,16.43424]
[1746576785714,3.64909815,1817.8,1817.7,57.23424]
[1746576785918,5.47364722,1817.9,1817.8,1.10028]
[1746576786114,5.47364722,1817.9,1817.8,12.18038]
[1746576786311,5.47364722,1817.9,1817.8,17.18038]
[1746576786816,6.57386722,1817.9,1817.8,17.18038]
[1746576787119,5.47364722,1817.9,1817.8,17.18038]
[1746576788124,6.57386722,1817.9,1817.8,17.18038]
[1746576788423,1.1002,1818.0,1817.8,17.18038]
[1746576788614,1.1002,1818.0,1817.9,2.70542]
[1746576788815,1.10011,1818.1,1817.9,2.70542]
[1746576789011,1.10011,1818.1,1818.0,6.1592]
[1746576790223,1.10011,1818.1,1818.0,9.7592]
[1746576790721,1.10011,1818.1,1818.0,13.8182]
[1746576791025,1.10011,1818.1,1818.0,14.91836]
[1746576791218,4.30791,1818.1,1818.0,9.2642]
[1746576792818,6.00621,1818.1,1818.0,9.2642]
[1746576793525,6.00621,1818.1,1818.0,3.6]
[1746576795321,15.55621,1818.1,1818.0,3.6]
[1746576795727,10.55621,1818.1,1818.0,3.6]
[1746576798532,10.55621,1818.1,1818.0,2.45693]
[1746576798733,1.1004,1817.6,1817.5,2.5671]
[1746576799026,4.3082,1817.6,1817.5,2.5671]
[1746576799220,4.3082,1817.6,1817.5,43.3671]
[1746576799617,1.10058,1817.3,1817.2,7.29030752]
[1746576799825,8.85838,1817.3,1817.2,7.29030752]
[1746576800131,13.85838,1817.3,1817.2,6.14810752]
[1746576800428,18.50955666,1817.3,1817.2,2.93852752]
[1746576800629,20.99875666,1817.3,1817.2,1.59627752]
[1746576801229,20.99875666,1817.3,1817.2,0.26220752]
[1746576801432,20.99875666,1817.3,1817.1,10.93546128]
[1746576801433,1.10064,1817.2,1817.1,10.93546128]
[1746576801628,2.72554,1817.2,1817.1,10.93546128]
[1746576801929,2.82671666,1817.2,1817.1,10.93546128]
[1746576802429,4.47774666,1817.2,1816.8,5.7777]
[1746576802727,1.10089,1816.8,1816.5,4.059]
[1746576802924,1.10089,1816.8,1816.6,6.2419]
[1746576803324,1.10089,1816.8,1816.6,1.6919]
[1746576804231,2.72579,1816.8,1816.6,1.6919]
[1746576807033,1.10125,1816.2,1816.1,4.059]
[1746576807332,1.10125,1816.2,1816.1,3.493]
[1746576807635,1.10125,1816.2,1816.1,8.493]
[1746576808130,1.10125,1816.2,1816.1,3.493]
[1746576808641,4.30904,1816.3,1816.1,3.493]
[1746576808931,1.10124,1816.3,1816.2,1.7751]
[1746576810625,4.30904,1816.3,1816.2,1.7751]
[1746576812431,4.30891,1816.5,1816.3,1.10117]
[1746576812632,4.30891,1816.5,1816.4,1.769]
[1746576814838,3.2078,1816.5,1816.4,1.769]
[1746576815237,3.2078,1816.5,1816.4,2.87013]
[1746576815739,1.10101,1816.6,1816.5,1.10107]
[1746576816039,4.551,1816.7,1816.5,3.69947]
[1746576816245,5.65197,1816.7,1816.5,3.69947]
[1746576816539,5.65197,1816.7,1816.6,1.7447]
[1746576816740,4.551,1816.7,1816.6,2.84571]
[1746576816940,5.65195,1816.7,1816.6,3.71971]
[1746576817246,3.2078,1816.8,1816.6,3.71971]
[1746576817538,4.30869,1816.8,1816.7,2.87585]
[1746576817738,1.10089,1816.8,1816.7,2.87585]
[1746576817943,1.10088,1816.9,1816.7,2.87585]
[1746576818138,1.10088,1816.9,1816.8,1.7749]
[1746576819240,1.10088,1816.9,1816.8,2.87579]
[1746576819642,1.10093,1816.8,1816.6,0.874]
[1746576819841,12.25389,1817.0,1816.7,2.70754]
[1746576819842,9.5019,1817.0,1816.7,2.70754]
[1746576820039,1.10088,1816.9,1816.8,1.6066]
[1746576821044,2.80818,1816.9,1816.8,1.6066]
[1746576821445,2.80818,1816.9,1816.8,2.70749]
[1746576821644,1.7073,1816.9,1816.8,2.70749]
[1746576822235,2.80813,1816.9,1816.8,1.6066]
[1746576823147,1.10083,1816.9,1816.8,1.6066]
[1746576823949,1.10083,1816.9,1816.8,2.70749]
[1746576824249,1.10083,1816.9,1816.8,1.6066]
[1746576824552,1.10083,1816.9,1816.8,2.70749]
[1746576825145,1.10083,1816.9,1816.8,1.6066]
[1746576825650,2.81793,1816.9,1816.8,1.6066]
[1746576825846,2.81793,1816.9,1816.8,2.70749]
[1746576826451,1.7171,1816.9,1816.8,2.70749]
[1746576826841,3.2078,1817.0,1816.9,1.10083]
[1746576827048,3.2078,1817.0,1816.9,3.73923]
[1746576828350,1.10065,1817.2,1817.1,1.1007]
[1746576828551,4.3084,1817.3,1817.2,1.10064]
[1746576829259,4.3084,1817.3,1817.1,2.75296]
[1746576829553,4.3084,1817.3,1817.2,40.8]
[1746576829751,4.3084,1817.3,1817.2,42.4523]
[1746576831356,5.9591,1817.3,1817.2,42.4523]
[1746576832754,3.2078,1817.3,1817.2,43.55294]
[1746576833055,4.30838,1817.3,1817.2,43.55294]
[1746576833557,4.30838,1817.3,1817.2,42.4523]
[1746576833747,4.30838,1817.3,1817.2,43.55294]
[1746576834760,4.30838,1817.3,1817.2,42.4523]
[1746576836460,4.30838,1817.3,1817.2,43.55294]
[1746576836959,3.2078,1817.3,1817.2,43.55294]
[1746576837155,1.10058,1817.3,1817.2,43.55294]
[1746576837761,1.10057,1817.4,1817.3,1.10057]
[1746576837964,8.6217,1817.6,1817.3,3.58193]
[1746576838158,1.10046,1817.5,1817.4,1.92782]
[1746576838455,1.10046,1817.5,1817.4,0.8273]
[1746576838662,4.30825,1817.6,1817.4,0.8273]
[1746576838961,4.30826,1817.6,1817.4,1.92778]
[1746576839162,1.10046,1817.5,1817.4,1.92778]
[1746576839560,1.10046,1817.5,1817.4,0.8273]
[1746576839759,1.10046,1817.5,1817.4,1.92782]
[1746576840362,4.30823,1817.6,1817.5,1.10046]
[1746576840862,1.10046,1817.5,1817.4,1.92777]
[1746576841257,4.30825,1817.6,1817.5,1.10046]
[1746576842155,1.10045,1817.6,1817.5,1.10046]
[1746576842866,1.10038,1817.7,1817.6,1.10039]
[1746576844066,1.10033,1817.8,1817.7,1.10034]
[1746576844269,1.10026,1817.9,1817.8,1.10025]
[1746576844568,4.30801,1818.0,1817.9,1.10022]